bitfinex-derivatives/quotes_ETHF0:USTF0_20241230
["timestamp","ask_amount","ask_price","bid_price","bid_amount"]
[1735589273871,3.50187,3404.8,3404.6,0.71588]
[1735589274872,3.2078,3404.8,3404.6,0.29408]
[1735589275060,3.50187,3404.8,3404.6,0.29408]
[1735589275865,0.29408,3404.7,3404.6,0.29408]
[1735589278068,3.2078,3405.2,3404.5,0.4319]
[1735589278272,0.29408,3404.6,3404.5,0.4319]
[1735589278470,0.29408,3404.6,3404.5,0.72599]
[1735589278672,0.29408,3404.7,3404.6,0.29408]
[1735589278868,0.73511,3405.1,3404.5,0.4319]
[1735589279075,0.29406,3404.9,3404.8,0.29406]
[1735589279773,3.2078,3405.2,3404.6,0.29408]
[1735589279774,0.29408,3404.7,3404.6,0.29408]
[1735589280867,0.29407,3404.8,3404.7,0.29407]
[1735589281662,3.2078,3405.2,3404.7,0.29407]
[1735589281869,0.29406,3404.9,3404.8,0.29406]
[1735589282373,0.29406,3404.9,3404.8,41.09406]
[1735589282769,0.29406,3404.9,3404.8,0.29406]
[1735589282973,0.29407,3404.8,3404.7,0.29407]
[1735589283676,3.2078,3405.2,3404.5,0.4319]
[1735589283869,3.2078,3405.2,3404.7,2.35867525]
[1735589284173,0.29408,3404.6,3404.5,0.4319]
[1735589284576,0.29408,3404.6,3404.5,1.1543839]
[1735589284774,0.29408,3404.6,3404.5,0.86031042]
[1735589285073,0.29408,3404.6,3404.5,0.4319]
[1735589285274,0.29408,3404.6,3404.5,0.86035064]
[1735589285676,0.29408,3404.6,3404.5,0.86042396]
[1735589286074,0.29408,3404.6,3404.5,1.15462464]
[1735589286265,0.29408,3404.6,3404.5,0.86053464]
[1735589287068,0.29408,3404.6,3404.5,0.4319]
[1735589287273,3.94301,3404.7,3404.1,3.2078]
[1735589287474,0.73522,3404.6,3404.2,0.79667505]
[1735589287669,0.2941,3404.4,3404.3,0.42887934]
[1735589287878,0.2941,3404.4,3404.1,3.2078]
[1735589287879,0.29412,3404.2,3404.1,3.2078]
[1735589288075,0.29412,3404.2,3404.1,4.00466172]
[1735589288276,0.29412,3404.2,3404.1,4.29879172]
[1735589288780,0.29412,3404.2,3404.1,1.09099172]
[1735589289579,0.29412,3404.2,3404.1,1.48403739]
[1735589289882,0.29412,3404.2,3403.8,0.4377]
[1735589289883,0.29414,3403.9,3403.8,0.4377]
[1735589290076,0.29414,3403.9,3403.8,1.65548328]
[1735589290275,0.29414,3403.9,3403.8,1.94963328]
[1735589290472,0.29414,3403.9,3403.8,1.65548328]
[1735589290674,0.29414,3403.9,3403.8,0.42964446]
[1735589290982,0.29414,3403.9,3403.6,0.29416]
[1735589290983,0.29416,3403.7,3403.6,0.29416]
[1735589291182,0.29416,3403.7,3403.6,1.09163742]
[1735589291581,0.8618,3404.1,3403.6,0.79747742]
[1735589291780,0.29416,3403.8,3403.7,0.723563]
[1735589292176,0.29416,3403.8,3403.7,0.72359461]
[1735589292484,0.29414,3403.9,3403.8,0.29415]
[1735589292774,0.29414,3403.9,3403.8,0.72346114]
[1735589294083,0.8618,3404.1,3403.8,0.29415]
[1735589294381,0.29413,3404.1,3403.9,0.29414]
[1735589294581,0.29413,3404.1,3403.8,2.35867525]
[1735589294778,0.29413,3404.1,3403.9,0.29414]
[1735589294973,0.29411,3404.3,3404.0,0.42897803]
[1735589295175,0.4511,3404.4,3403.8,2.35867525]
[1735589295379,0.29412,3404.3,3404.1,0.29412]
[1735589295576,3.2078,3404.6,3404.2,1.1519745]
[1735589295778,3.2078,3404.6,3404.2,0.4289]
[1735589295971,3.2078,3404.6,3404.3,0.72300285]
[1735589296176,0.29409,3404.5,3404.4,0.2941]
[1735589296579,3.50189,3404.6,3404.4,0.72289961]
[1735589296781,0.29409,3404.5,3404.0,0.29413]
[1735589297084,0.29413,3404.1,3404.0,1.15133]
[1735589297286,0.29413,3404.1,3404.0,1.58024015]
[1735589297489,0.29413,3404.1,3404.0,1.15133]
[1735589297680,0.29413,3404.1,3404.0,1.58021598]
[1735589297880,3.2078,3404.6,3404.1,0.29412]
[1735589298280,3.2078,3404.6,3404.1,2.35867525]
[1735589298580,3.2078,3404.6,3404.5,0.29409]
[1735589298775,3.2078,3404.6,3404.5,1.09067531]
[1735589298987,3.2078,3404.6,3404.5,1.52547531]
[1735589299681,5.77240504,3404.9,3404.8,0.29407]
[1735589299682,6.06646504,3404.9,3404.8,0.29407]
[1735589299883,6.06646504,3404.9,3404.8,0.72246393]
[1735589299884,5.77240504,3404.9,3404.8,0.72246393]
[1735589300082,3.2078,3405.2,3404.8,0.79610715]
[1735589300383,0.29405,3405.1,3405.0,0.29404]
[1735589300583,0.29406,3405.0,3404.9,0.29405]
[1735589300778,0.29406,3405.0,3404.9,0.72228753]
[1735589301388,0.29406,3405.0,3404.9,0.29405]
[1735589301589,0.29406,3405.0,3404.9,0.72221729]
[1735589301784,0.29404,3405.1,3404.9,0.42816729]
[1735589301991,0.29404,3405.1,3405.0,0.29404]
[1735589302682,0.73506,3405.4,3405.3,0.29402]
[1735589302683,0.29401,3405.4,3405.3,0.29402]
[1735589302882,3.6291,3405.6,3405.0,2.35867525]
[1735589302883,3.2078,3405.6,3405.0,2.35867525]
[1735589303185,3.2078,3405.6,3404.8,3.6382]
[1735589303186,6.06639504,3405.7,3405.6,0.294]
[1735589303393,0.294,3405.6,3405.5,0.294]
[1735589303586,0.294,3405.6,3405.5,0.72171413]
[1735589303890,0.294,3405.6,3405.5,0.294]
[1735589304086,0.294,3405.6,3405.5,0.7461]
[1735589304492,0.29399,3405.7,3405.6,0.29399]
[1735589304988,3.6372,3406.1,3405.6,0.29399]
[1735589304989,3.2078,3406.1,3405.6,0.42745579]
[1735589305186,0.29397,3405.9,3405.8,0.29397]
[1735589305492,0.29397,3406.0,3405.9,0.29397]
[1735589306185,0.29396,3406.0,3405.8,0.29398]
[1735589306793,3.2078,3406.1,3405.5,0.4521]
[1735589306994,0.294,3405.6,3405.5,0.4521]
[1735589307587,3.2078,3406.1,3405.5,0.7461]
[1735589307789,0.29399,3405.7,3405.6,0.294]
[1735589307989,3.2078,3406.1,3405.5,0.4521]
[1735589308294,0.294,3405.6,3405.5,0.4521]
[1735589309295,0.294,3405.6,3405.5,0.7461]
[1735589309995,0.294,3405.5,3405.4,0.4272]
[1735589310195,0.73502,3405.5,3404.7,3.50187]
[1735589310390,3.2078,3405.2,3404.7,0.4241]
[1735589310690,0.29405,3405.0,3404.9,0.29405]
[1735589311088,3.2078,3405.2,3404.8,0.29406]
[1735589311089,0.29406,3404.9,3404.8,0.29406]
[1735589311284,0.29407,3404.8,3404.7,0.4241]
[1735589311489,0.29406,3404.9,3404.8,0.29406]
[1735589311689,0.29404,3405.1,3405.0,0.29404]
[1735589312189,3.2078,3405.2,3405.1,0.29404]
[1735589312190,0.29403,3405.2,3405.1,0.29404]
[1735589312691,0.29403,3405.3,3405.2,0.29403]
[1735589313495,0.29406,3404.9,3404.8,0.29407]
[1735589313901,0.29407,3404.8,3404.7,0.71817]
[1735589314192,0.29407,3404.8,3404.7,0.4241]
[1735589314396,0.29407,3404.8,3404.7,0.71817]
[1735589316501,0.29407,3404.8,3404.7,0.4241]
[1735589317299,0.29407,3404.8,3404.3,0.4545]
[1735589317300,0.2941,3404.4,3404.3,0.4545]
[1735589317508,0.8442,3404.7,3404.3,0.4545]
[1735589317804,0.29408,3404.6,3404.5,0.29409]
[1735589319303,0.2941,3404.4,3404.3,0.7486]
[1735589319705,0.2941,3404.5,3404.4,0.29409]
[1735589320008,0.29408,3404.7,3404.6,0.29408]
[1735589320421,0.29406,3405.0,3404.9,0.29405]
[1735589320710,4.0806,3405.2,3405.0,0.29404]
[1735589320711,0.29404,3405.1,3405.0,0.29404]
[1735589322608,3.2078,3405.2,3405.1,0.29404]
[1735589322907,3.2078,3405.9,3404.9,2.35867525]
[1735589323216,6.06638504,3405.8,3405.7,0.29399]
[1735589323809,0.294,3405.6,3405.5,0.294]
[1735589324804,0.294,3405.5,3405.4,0.4553]
[1735589325006,2.35867525,3405.7,3405.0,0.8625]
[1735589325208,0.29403,3405.3,3405.2,0.29402]
[1735589325709,3.2078,3405.5,3405.0,1.3008]
[1735589326014,0.29402,3405.4,3405.3,0.29402]
[1735589326416,3.2078,3405.9,3405.0,3.65947525]
[1735589326607,0.294,3405.6,3405.5,0.294]
[1735589327920,0.29402,3405.4,3405.3,0.29402]
[1735589328107,0.29403,3405.3,3405.2,0.29402]
[1735589328308,0.73497,3405.8,3405.2,1.08995987]
[1735589328511,0.73497,3405.8,3405.0,1.3008]
[1735589328715,0.29402,3405.4,3405.3,0.29401]
[1735589328915,0.29402,3405.4,3405.3,0.72228372]
[1735589329314,3.2078,3405.9,3405.3,0.42827372]
[1735589329514,0.29401,3405.5,3405.4,0.29401]
[1735589329715,0.29402,3405.4,3405.3,0.29402]
[1735589329915,0.29402,3405.4,3405.3,0.72228887]
[1735589330215,0.29401,3405.5,3405.4,0.29401]
[1735589330816,3.94275,3405.9,3405.0,3.65947525]
[1735589330817,0.29404,3405.2,3405.0,3.65947525]
[1735589331116,0.29404,3405.2,3405.1,0.79594213]
[1735589331313,0.73497,3405.8,3405.1,0.79594213]
[1735589331517,0.29402,3405.4,3405.3,0.29402]
[1735589331714,0.29402,3405.4,3405.3,0.72229479]
[1735589332416,0.29402,3405.4,3405.3,0.42827479]
[1735589332617,0.29402,3405.4,3405.3,0.72229479]
[1735589332811,0.29402,3405.4,3405.3,0.79594012]
[1735589333011,0.29402,3405.4,3405.3,0.42827479]
[1735589333412,0.29402,3405.4,3405.3,0.29402]
[1735589333616,0.29403,3405.3,3405.2,0.29403]
[1735589333817,0.29403,3405.3,3405.2,0.42810862]
[1735589334814,1.19111,3405.6,3405.0,1.3008]
[1735589335015,0.73506,3405.4,3405.0,0.8758]
[1735589335214,0.73506,3405.4,3405.0,0.4375]
[1735589335215,0.29404,3405.1,3405.0,0.4375]
[1735589335611,0.29407,3404.8,3404.7,40.8]
[1735589335917,0.29407,3404.8,3404.7,0.42833805]
[1735589336120,0.29407,3404.7,3404.6,0.4367]
[1735589336419,0.29407,3404.7,3404.6,0.86514759]
[1735589336615,0.29407,3404.7,3404.6,1.15922759]
[1735589337216,0.29407,3404.7,3404.6,1.52696872]
[1735589337417,0.29407,3404.7,3404.6,1.527022]
[1735589337818,0.29407,3404.7,3404.6,1.52699844]
[1735589340324,3.2078,3405.2,3404.6,1.23291844]
[1735589340524,0.4301,3405.3,3404.7,2.0704479]
[1735589340719,0.29407,3404.9,3404.8,1.09042446]
[1735589340919,0.4301,3405.3,3404.8,0.79636446]
[1735589341228,0.29405,3405.0,3404.9,1.09041446]
[1735589341523,0.29405,3405.0,3404.9,0.42863096]
[1735589342220,0.29407,3404.7,3404.6,0.73078]
[1735589342426,0.29407,3404.7,3404.6,0.79659753]
[1735589342627,0.29407,3404.7,3404.6,1.09067753]
[1735589344227,0.29407,3404.7,3404.6,0.79659753]
[1735589344730,0.29407,3404.7,3404.6,0.42886074]
[1735589344930,0.29407,3404.7,3404.6,0.79661863]
[1735589345226,0.29407,3404.7,3404.6,0.42886074]
[1735589345425,0.4478,3404.9,3404.5,0.29409]
[1735589345631,0.4478,3404.9,3404.6,0.42911645]
[1735589345632,0.29407,3404.7,3404.6,0.42911645]
[1735589348025,0.29407,3404.7,3404.6,0.72319645]
[1735589348222,0.29407,3404.7,3404.6,0.79686455]
[1735589348421,0.29407,3404.7,3404.6,0.79686948]
[1735589348730,0.29407,3404.7,3404.6,0.42906696]
[1735589349232,0.29412,3404.2,3403.8,9.21912788]
[1735589349532,0.29411,3404.3,3404.2,0.2941]
[1735589349731,0.29411,3404.3,3404.2,1.09103564]
[1735589351427,3.2078,3404.5,3404.2,0.79693564]
[1735589351630,3.2078,3404.5,3404.0,40.8]
[1735589351631,3.5019,3404.5,3404.4,0.2941]
[1735589351833,0.29408,3404.6,3404.5,0.29409]
[1735589352031,0.29408,3404.6,3404.5,1.60649181]
[1735589352334,0.29406,3404.9,3404.8,0.29406]
[1735589352533,0.29406,3404.9,3404.8,0.72284002]
[1735589352731,0.29406,3404.9,3404.8,1.09057054]
[1735589353437,0.29406,3404.9,3404.8,0.72284002]
[1735589353631,0.29406,3404.9,3404.8,0.42878002]
[1735589353932,0.29406,3404.9,3404.8,0.72285002]
[1735589354629,0.29406,3404.9,3404.8,0.72300327]
[1735589354832,0.29406,3404.9,3404.8,0.723003]
[1735589355032,3.2078,3405.1,3405.0,0.29405]
[1735589355230,5.77240504,3405.3,3405.2,0.29403]
[1735589355437,5.77240504,3405.3,3405.2,1.0906484]
[1735589355732,5.77240504,3405.3,3405.2,0.722963]
[1735589355733,0.29402,3405.3,3405.2,0.722963]
[1735589355933,0.29402,3405.3,3405.2,0.29403]
[1735589356829,0.29402,3405.3,3405.2,0.72276229]
[1735589357934,0.29402,3405.3,3405.1,0.8434]
[1735589357935,0.29403,3405.2,3405.1,1.13744]
[1735589358126,0.29403,3405.2,3405.1,1.93396433]
[1735589358330,0.29403,3405.2,3405.1,0.42882451]
[1735589358529,0.29405,3405.1,3405.0,0.29404]
[1735589358729,0.29405,3405.1,3405.0,1.09066119]
[1735589359926,5.77240504,3405.6,3405.1,0.29403]
[1735589359927,0.29404,3405.2,3405.1,0.29403]
[1735589360135,0.29404,3405.2,3405.1,1.09065119]
[1735589361029,0.29404,3405.2,3405.1,1.09065588]
[1735589362334,10.14158504,3405.7,3405.1,0.79662588]
[1735589362541,0.29402,3405.3,3405.2,1.96935318]
[1735589362740,0.29402,3405.3,3405.2,1.60165879]
[1735589362933,0.29402,3405.3,3405.2,1.96935269]
[1735589363133,0.29402,3405.3,3405.2,42.76935269]
[1735589363534,0.29402,3405.4,3405.3,0.29401]
[1735589363838,0.29402,3405.4,3405.3,0.42892879]
[1735589364038,4.36918,3405.7,3405.3,0.42894061]
[1735589364239,0.29402,3405.4,3405.3,0.29402]
[1735589364635,0.29402,3405.4,3405.3,1.0906137]
[1735589364833,0.29402,3405.4,3405.3,0.42891929]
[1735589365341,0.29405,3405.1,3405.0,0.29404]
[1735589365542,0.29405,3405.1,3405.0,1.94397499]
[1735589365744,0.29404,3405.2,3405.1,0.29403]
[1735589366046,0.29404,3405.2,3405.1,1.09066499]
[1735589366247,0.73503,3405.5,3405.1,1.09066499]
[1735589366248,0.29403,3405.3,3405.2,0.29402]
[1735589366438,0.29403,3405.3,3405.2,1.09065499]
[1735589367136,0.29403,3405.3,3405.2,1.09053836]
[1735589367339,0.29402,3405.4,3405.3,0.29401]
[1735589367534,0.29402,3405.4,3405.3,0.42882698]
[1735589367740,10.14158504,3405.7,3405.2,0.29403]
[1735589367933,0.29404,3405.1,3405.0,0.8533]
[1735589368138,0.29404,3405.1,3405.0,1.64991451]
[1735589368942,0.29404,3405.1,3405.0,0.42891153]
[1735589370746,0.29407,3404.9,3404.8,0.29405]
[1735589370944,0.29407,3404.9,3404.8,1.52701628]
[1735589371143,0.29407,3404.9,3404.8,0.79706628]
[1735589371639,3.50187,3404.9,3404.8,0.4293303]
[1735589371846,3.50187,3404.9,3404.3,4.57363509]
[1735589371847,0.2941,3404.4,3404.3,4.57363509]
[1735589372045,0.2941,3404.4,3404.3,5.37071035]
[1735589372247,0.2941,3404.4,3404.3,5.66482035]
[1735589372846,0.2941,3404.4,3404.3,5.37071035]
[1735589373349,0.2941,3404.4,3404.3,0.79711625]
[1735589373747,0.2941,3404.4,3404.3,0.42927283]
[1735589376051,0.2941,3404.4,3404.3,0.72338283]
[1735589376250,0.2941,3404.4,3404.3,1.09100958]
[1735589376958,0.2941,3404.4,3404.3,0.72322648]
[1735589377256,0.2941,3404.5,3404.4,0.29409]
[1735589377446,0.2941,3404.5,3404.4,0.7231104]
[1735589377645,9.41400504,3404.9,3404.4,0.4290204]
[1735589377848,9.41400504,3404.9,3404.1,5.56647525]
[1735589377849,0.29408,3404.7,3404.6,0.29407]
[1735589378047,8.98020504,3404.9,3404.6,0.42897775]
[1735589378247,9.27426504,3404.9,3404.8,0.29407]
[1735589378645,6.06646504,3404.9,3404.8,0.29407]
[1735589378851,5.77240504,3404.9,3404.8,0.72301785]
[1735589379150,10.11076209,3405.3,3405.2,0.29403]
[1735589379151,8.28670504,3405.3,3405.2,0.29403]
[1735589379357,8.28670504,3405.3,3405.2,0.72286244]
[1735589379755,5.07890504,3405.3,3405.2,1.09053723]
[1735589380559,0.29402,3405.4,3405.2,0.79650723]
[1735589380757,0.29402,3405.4,3405.3,41.52285244]
[1735589381255,0.29401,3405.5,3405.4,0.294]
[1735589381456,0.29401,3405.5,3405.4,0.7521]
[1735589383058,0.29401,3405.5,3405.4,1.18094359]
[1735589384059,3.50179,3405.7,3405.6,0.294]
[1735589384957,3.2078,3405.7,3405.4,0.4581]
[1735589385351,0.294,3405.6,3405.5,0.294]
[1735589386055,0.294,3405.6,3405.5,0.72243685]
[1735589386451,3.2078,3405.7,3405.4,0.4581]
[1735589386651,0.294,3405.6,3405.5,0.294]
[1735589386960,3.50179,3405.7,3405.6,0.294]
[1735589387155,0.294,3405.6,3405.5,0.294]
[1735589387758,3.50179,3405.7,3405.6,0.294]
[1735589387956,0.294,3405.6,3405.5,0.294]
[1735589388257,0.4338,3405.9,3405.5,0.42820967]
[1735589388457,0.4338,3405.9,3405.4,0.4581]
[1735589388458,0.294,3405.7,3405.6,0.29399]
[1735589389158,0.4338,3405.9,3405.4,0.4581]
[1735589389458,0.294,3405.5,3405.4,0.75211]
[1735589390349,0.294,3405.5,3405.4,0.4581]
[1735589390550,0.73497,3405.8,3405.1,3.2078]
[1735589390759,0.4468,3405.4,3405.1,3.50184]
[1735589390960,0.29403,3405.2,3405.1,3.2078]
[1735589394562,0.29403,3405.2,3405.1,3.50184]
[1735589396661,0.29403,3405.2,3405.1,3.2078]
[1735589397259,0.29403,3405.2,3405.1,3.50184]
[1735589397665,0.29403,3405.2,3405.1,3.2078]
[1735589398666,0.29405,3405.0,3404.9,40.8]
[1735589398860,0.29406,3404.9,3404.8,0.29406]
[1735589399067,0.29406,3404.9,3404.8,0.72253495]
[1735589399261,0.4225,3405.3,3404.8,0.72253495]
[1735589399262,0.29406,3405.0,3404.9,0.29405]
[1735589399566,0.29406,3405.0,3404.9,1.09022132]
[1735589400659,0.29406,3405.0,3404.9,41.52252495]
[1735589402170,0.29406,3405.0,3404.9,41.89022293]
[1735589402561,0.4225,3405.3,3405.0,0.29403]
[1735589402562,0.29404,3405.1,3405.0,0.29403]
[1735589402765,0.29404,3405.2,3405.1,0.29403]
[1735589403365,0.29404,3405.3,3405.2,0.29402]
[1735589404374,3.2078,3405.5,3405.2,0.42875638]
[1735589404677,0.29402,3405.4,3405.3,1.58364508]
[1735589405378,0.29402,3405.4,3405.3,1.95131399]
[1735589406173,0.29402,3405.4,3405.3,1.95145274]
[1735589406476,0.29402,3405.4,3405.3,1.50766274]
[1735589406671,0.29402,3405.4,3405.3,0.4288729]
[1735589407274,3.50181,3405.5,3405.4,0.29401]
[1735589407578,3.2078,3405.5,3405.4,1.09094234]
[1735589407877,0.4301,3405.8,3405.6,0.294]
[1735589407878,0.29399,3405.7,3405.6,0.294]
[1735589408075,0.29399,3405.7,3405.6,0.72325653]
[1735589408479,0.29399,3405.7,3405.6,1.09090039]
[1735589409180,0.29399,3405.7,3405.6,0.42925653]
[1735589410078,0.294,3405.6,3405.5,0.294]
[1735589410277,0.294,3405.6,3405.5,1.09109709]
[1735589411383,0.29399,3405.7,3405.6,0.29399]
[1735589411582,0.29399,3405.7,3405.6,0.42943973]
[1735589411785,0.29399,3405.7,3405.6,0.72343973]
[1735589411984,0.29399,3405.7,3405.6,0.72340589]
[1735589412788,0.29399,3405.7,3405.6,0.42940589]
[1735589415089,0.29399,3405.7,3405.6,0.42921279]
[1735589415291,0.294,3405.6,3405.5,0.294]
[1735589415484,0.294,3405.6,3405.5,1.09089731]
[1735589418085,0.294,3405.6,3405.5,1.0909769]
[1735589418880,0.294,3405.6,3405.5,1.09096873]
[1735589419083,0.294,3405.6,3405.5,0.79696873]
[1735589419584,0.294,3405.6,3405.1,3.2078]
[1735589419786,0.29403,3405.3,3405.2,1.7779715]
[1735589419986,0.29403,3405.3,3405.2,1.09103663]
[1735589420192,0.29403,3405.3,3405.2,0.72339219]
[1735589420493,0.29403,3405.3,3405.2,1.0910721]
[1735589420691,0.29403,3405.3,3405.2,0.7970421]
[1735589421292,0.29403,3405.3,3405.2,0.42936219]
[1735589421489,0.29402,3405.3,3405.2,0.4294469]
[1735589421896,0.29402,3405.3,3405.2,1.09116671]
[1735589424499,0.29402,3405.4,3405.3,0.29401]
[1735589424698,0.29402,3405.4,3405.3,1.0911325]
[1735589424898,0.29402,3405.4,3405.3,0.7971225]
[1735589425094,0.29402,3405.4,3405.3,1.0911425]
[1735589425300,0.29402,3405.4,3405.3,0.7971225]
[1735589426195,0.29402,3405.4,3405.3,0.4294469]
[1735589426600,0.29402,3405.4,3405.3,0.79712936]
[1735589426793,0.29402,3405.4,3405.3,1.09114936]
[1735589427194,0.29402,3405.4,3405.3,0.79712936]
[1735589427595,0.29403,3405.2,3405.1,0.75324]
[1735589427791,0.29403,3405.2,3405.1,2.82665145]
[1735589428003,0.29403,3405.2,3405.1,2.82668458]
[1735589428599,0.29403,3405.4,3405.3,0.29402]
[1735589428804,0.29403,3405.4,3405.3,1.09149868]
[1735589429301,0.29403,3405.4,3405.3,0.79747868]
[1735589434196,5.77291632,3405.5,3405.3,0.79747868]
[1735589434403,5.77291632,3405.5,3405.4,2.368203]
[1735589434602,5.77291632,3405.6,3405.5,0.294]
[1735589434805,5.77291632,3405.6,3405.5,2.36818304]
[1735589435403,6.06691632,3405.6,3405.5,2.36818304]
[1735589435708,0.294,3405.6,3405.5,2.36818304]
[1735589437210,0.294,3405.6,3405.5,2.36795768]
[1735589437709,0.29399,3405.8,3405.7,0.29398]
[1735589438008,0.29399,3405.8,3405.7,0.79767603]
[1735589438406,0.29399,3405.8,3405.7,1.09166603]
[1735589438607,0.29399,3405.8,3405.7,1.25408096]
[1735589439206,0.29399,3405.8,3405.7,0.79758096]
[1735589439407,0.29399,3405.8,3405.7,0.42993625]
[1735589439606,0.29399,3405.8,3405.4,4.57363509]
[1735589439607,0.294,3405.5,3405.4,4.57363509]
[1735589439905,0.294,3405.5,3405.4,5.37134289]
[1735589440101,0.294,3405.5,3405.4,5.00366728]
[1735589440304,0.294,3405.5,3405.4,0.43003219]
[1735589440905,0.294,3405.5,3405.4,0.79770696]
[1735589441505,0.294,3405.5,3405.4,0.43003219]
[1735589441713,0.294,3405.5,3405.4,0.79771316]
[1735589441900,0.7263,3405.5,3405.4,0.79771316]
[1735589442709,0.4323,3405.5,3405.2,0.4509]
[1735589442911,0.29401,3405.4,3405.3,0.79379033]
[1735589445919,0.29401,3405.4,3405.3,0.42610781]
[1735589446215,0.29401,3405.4,3405.3,0.79378679]
[1735589446416,0.29401,3405.4,3405.3,0.79374849]
[1735589447323,0.29401,3405.4,3405.3,0.42606886]
[1735589447620,0.29402,3405.3,3405.2,0.4509]
[1735589448015,0.29402,3405.3,3405.2,1.24480227]
[1735589448913,0.29402,3405.3,3405.2,0.87710836]
[1735589449116,0.29402,3405.3,3405.2,1.24478963]
[1735589449516,0.29402,3405.3,3405.2,0.79388963]
[1735589449709,0.29406,3404.9,3404.8,5.28819509]
[1735589449910,0.29406,3404.9,3404.8,5.78793057]
[1735589450111,0.29406,3404.9,3404.8,6.08200057]
[1735589450814,0.29406,3404.9,3404.8,1.50836548]
[1735589452013,0.29406,3404.9,3404.8,1.50825545]
[1735589454116,5.77291632,3405.2,3404.8,1.21418545]
[1735589454421,0.29405,3405.1,3405.0,0.29404]
[1735589454621,0.29405,3405.1,3405.0,1.08772545]
[1735589454823,0.29405,3405.1,3405.0,41.88772545]
[1735589455124,0.29405,3405.1,3405.0,41.5934434]
[1735589455315,5.77291632,3405.4,3405.0,41.5934434]
[1735589455518,0.29403,3405.2,3405.1,1.53917261]
[1735589455920,3.6401,3405.5,3405.1,1.53917261]
[1735589456124,0.29402,3405.3,3405.2,0.42574929]
[1735589456621,0.29403,3405.2,3405.1,0.29404]
[1735589456815,0.29403,3405.2,3405.1,1.17138694]
[1735589457019,0.29403,3405.2,3405.1,1.17141526]
[1735589457219,0.29403,3405.2,3405.1,1.53909708]
[1735589457412,9.41301632,3405.5,3405.1,0.87737526]
[1735589457613,0.29402,3405.3,3405.2,0.29402]
[1735589457817,0.29402,3405.4,3405.3,0.29402]
[1735589458014,9.41301632,3405.5,3405.1,0.4517]
[1735589458015,0.29403,3405.3,3405.1,0.4517]
[1735589458220,0.29403,3405.3,3405.2,0.29403]
[1735589458420,0.29403,3405.2,3405.1,0.74573]
[1735589458620,0.29403,3405.2,3405.1,1.5389688]
[1735589458820,0.29403,3405.2,3405.1,1.17128128]
[1735589459414,0.29403,3405.2,3405.1,1.17140436]
[1735589459618,0.29403,3405.2,3405.1,0.74573]
[1735589460425,0.29403,3405.2,3405.1,0.4517]
[1735589460729,0.29406,3405.0,3404.9,0.29405]
[1735589461027,0.29406,3405.0,3404.9,1.08735199]
[1735589463027,6.50797632,3405.3,3404.8,0.8436]
[1735589463326,0.29408,3404.6,3404.5,4.57363509]
[1735589463531,0.29408,3404.6,3404.5,4.99941903]
[1735589463830,0.29408,3404.6,3404.5,4.57363509]
[1735589464727,8.98071632,3404.7,3404.1,0.4434]
[1735589464926,0.29412,3404.2,3404.1,0.4434]
[1735589465128,0.29412,3404.2,3404.1,0.73753]
[1735589465331,0.29412,3404.2,3404.1,2.32487587]
[1735589465724,0.29412,3404.2,3404.1,2.03074587]
[1735589466432,0.29412,3404.2,3404.1,2.03069317]
[1735589467930,0.29412,3404.2,3404.1,2.32482317]
[1735589468130,0.29412,3404.2,3404.1,2.03069317]
[1735589468539,0.29412,3404.2,3404.1,1.66289841]
[1735589468833,0.29412,3404.2,3404.1,0.79366809]
[1735589469230,0.74092,3404.2,3404.1,0.79366809]
[1735589469535,0.74092,3404.2,3403.8,0.4207]
[1735589469734,0.73522,3404.6,3404.3,0.29411]
[1735589469735,5.77291632,3404.4,3404.3,0.29411]
[1735589469936,5.77291632,3404.4,3403.9,3.2078]
[1735589470232,0.29415,3403.9,3403.7,0.75356]
[1735589470429,0.29415,3403.9,3403.8,0.79352604]
[1735589470628,3.6546,3404.3,3403.7,0.4594]
[1735589470828,0.29414,3404.0,3403.8,0.71987415]
[1735589471030,0.29414,3404.0,3403.8,0.29415]
[1735589472035,0.29414,3403.9,3403.8,0.29415]
[1735589474337,0.29414,3403.9,3403.8,0.66195829]
[1735589474539,0.29414,3403.9,3403.8,0.29415]
[1735589475041,0.29414,3403.9,3403.8,0.71960099]
[1735589475446,0.29414,3403.9,3403.8,0.71959154]
[1735589475740,0.29414,3403.9,3403.8,0.29415]
[1735589477238,0.29414,3403.9,3403.8,0.71960571]
[1735589477738,0.29414,3403.9,3403.8,0.29415]
[1735589478136,0.29415,3403.8,3403.7,0.75355]
[1735589478435,0.29415,3403.8,3403.7,0.4594]
[1735589478640,0.29415,3403.8,3403.7,0.75356]
[1735589480537,0.29415,3403.8,3403.7,1.20916]
[1735589482543,0.29415,3403.8,3403.7,0.4556]
[1735589482847,0.29418,3403.5,3403.4,3.2078]
[1735589483046,0.29417,3403.6,3403.5,0.29417]
[1735589484251,0.71526,3403.7,3403.6,0.29417]
[1735589484842,0.29418,3403.6,3403.5,0.29418]
[1735589486848,0.29418,3403.5,3403.3,0.4388]
[1735589487154,0.29419,3403.4,3403.3,0.4388]
[1735589489652,0.29419,3403.4,3403.2,0.4313]
[1735589489653,0.29422,3403.0,3402.9,0.4199]
[1735589489847,0.29422,3403.0,3402.9,1.21480976]
[1735589490058,0.29423,3402.9,3402.8,0.4246]
[1735589490251,3.6356,3403.3,3402.6,0.4211]
[1735589490451,0.29425,3402.7,3402.6,0.4211]
[1735589490657,0.29425,3402.7,3402.6,1.21592506]
[1735589490858,0.29425,3402.7,3402.6,0.84796301]
[1735589491156,0.29425,3402.7,3402.6,0.84796221]
[1735589491352,0.29425,3402.7,3402.6,0.4211]
[1735589491964,0.29425,3402.7,3402.6,0.84794222]
[1735589492159,0.29426,3402.6,3402.5,0.4246]
[1735589492359,0.29426,3402.6,3402.5,0.8689]
[1735589492763,0.29426,3402.5,3402.4,3.2078]